bitfinex/quotes_SOLUSD_20250107
["timestamp","ask_amount","ask_price","bid_price","bid_amount"]
[1736262010621,23.82949023,212.23,211.96,16.39436778]
[1736262010933,16.268968,212.03,211.99,0.12549]
[1736262011124,10.6047,212.17,211.99,0.12549]
[1736262011325,10.6047,212.17,212.0,16.39436778]
[1736262011630,10.6047,212.17,212.01,0.12549]
[1736262011934,20.0,212.14,211.92,16.39436778]
[1736262012105,0.12549,212.16,211.92,16.39436778]
[1736262012433,5.12549,212.16,211.88,22.56206778]
[1736262012724,0.25098,212.07,211.92,16.39436778]
[1736262013024,0.25098,212.07,211.93,0.12549]
[1736262013337,71.903107,212.17,211.93,0.12549]
[1736262013509,20.0,212.12,211.92,0.12549]
[1736262013700,20.0,212.12,211.88,22.56206778]
[1736262013944,20.0,212.12,211.92,16.39436778]
[1736262014234,71.903107,212.17,211.88,6.1677]
[1736262014235,75.847964,212.13,211.88,6.1677]
[1736262014546,31.8201,212.13,211.88,6.1677]
[1736262014835,31.8201,212.13,211.91,16.39436778]
[1736262015044,44.027864,212.09,211.89,16.51985778]
[1736262015214,44.027864,212.09,211.87,1.3807]
[1736262015602,44.027864,212.09,211.88,0.12549]
[1736262016133,31.8201,212.13,211.87,17.77506778]
[1736262016134,21.2134,212.13,211.91,0.12549]
[1736262016433,5.0,212.16,211.85,16.39436778]
[1736262016434,10.6092,212.08,211.85,16.39436778]
[1736262016729,20.0,212.05,211.87,16.39436778]
[1736262016930,20.0,212.05,211.89,16.39436778]
[1736262017116,10.6092,212.08,211.89,16.39436778]
[1736262017438,20.0,212.04,211.85,16.39436778]
[1736262017622,0.25098,211.99,211.84,16.39436778]
[1736262017828,0.25098,211.99,211.86,16.39436778]
[1736262018029,0.25098,211.99,211.84,16.39436778]
[1736262018346,5.0,212.13,211.78,11.6156]
[1736262018347,42.4288,212.12,211.89,16.39436778]
[1736262018552,10.6077,212.11,211.92,0.12549]
[1736262018722,10.6077,212.11,211.94,0.12549]
[1736262018935,10.6077,212.11,211.93,32.60169272]
[1736262019128,10.6077,212.11,211.97,32.60169272]
[1736262019431,10.6077,212.11,211.91,32.60169272]
[1736262019633,20.0,212.08,211.93,32.60169272]
[1736262019947,0.12549,212.1,211.95,32.60169272]
[1736262020149,0.12549,212.1,211.97,32.60169272]
[1736262020447,0.12549,212.16,211.91,32.60169272]
[1736262020637,0.12549,212.16,211.83,35.88282485]
[1736262020638,20.0,212.13,211.83,35.88282485]
[1736262020834,20.0,212.13,211.85,32.60169272]
[1736262021033,20.0,212.13,211.93,32.60169272]
[1736262021241,20.0,212.13,211.83,8.28113213]
[1736262021451,0.25098,212.12,211.83,35.88282485]
[1736262021641,5.25098,212.12,211.83,3.28113213]
[1736262021841,0.25098,212.03,211.83,3.28113213]
[1736262022050,0.25098,212.03,211.84,32.60169272]
[1736262022365,0.25098,211.94,211.84,32.60169272]
[1736262022523,10.6102,212.06,211.89,0.12549]
[1736262022726,10.6102,212.06,211.92,32.60169272]
[1736262023123,10.6057,212.15,211.99,0.12549]
[1736262023547,0.12549,212.14,211.93,32.60169272]
[1736262023743,20.0,212.12,211.93,32.60169272]
[1736262023980,10.6057,212.15,212.02,0.12549]
[1736262024138,10.6057,212.15,211.93,5.0]
[1736262024139,10.6057,212.15,212.03,32.60169272]
[1736262024338,10.6037,212.19,212.01,32.60169272]
[1736262024653,10.6037,212.19,212.06,0.12549]
[1736262024855,20.0,212.16,212.06,0.12549]
[1736262025057,10.6037,212.19,212.04,32.60169272]
[1736262025230,10.6037,212.19,212.06,32.60169272]
[1736262025434,10.6037,212.19,212.04,32.60169272]
[1736262025643,10.6037,212.19,212.06,32.60169272]
[1736262025979,0.25098,212.13,211.85,6.3236]
[1736262026267,0.25098,212.13,211.88,32.60169272]
[1736262026469,10.6072,212.12,211.9,32.60169272]
[1736262026646,10.6072,212.12,211.24,17.8]
[1736262026647,5.0,211.69,211.24,17.8]
[1736262026969,5.0,211.99,210.86,0.97510823]
[1736262026970,5.0,211.76,211.55,32.60169272]
[1736262027152,5.0,211.87,211.59,32.60169272]
[1736262027357,10.0,211.92,211.63,32.60169272]
[1736262027536,5.0,211.91,211.63,32.60169272]
[1736262027734,5.0,211.92,211.67,32.60169272]
[1736262027950,5.0,211.89,211.63,60.61069294]
[1736262028153,25.0,211.92,211.67,32.60169272]
[1736262028341,5.0,211.92,211.66,1.5737]
[1736262028542,10.0,211.98,211.73,20.0]
[1736262028745,5.0,211.92,211.71,0.25098]
[1736262028957,10.6147,211.97,211.71,0.25098]
[1736262029140,5.0,211.96,211.71,20.25098]
[1736262029358,25.0,211.93,211.66,45.98649272]
[1736262029660,5.0,211.99,211.89,0.25098]
[1736262029849,5.0,211.99,211.89,0.12549]
[1736262030045,5.0,211.96,211.89,0.12549]
[1736262030236,5.0,212.0,211.75,6.2792]
[1736262030442,21.2144,212.12,211.79,0.12549]
[1736262030443,5.0,212.06,211.79,0.12549]
[1736262030668,5.0,212.01,211.79,0.12549]
[1736262030842,5.0,212.0,211.79,0.12549]
[1736262031038,20.0,211.99,211.79,0.12549]
[1736262031446,5.0,211.94,211.75,6.2792]
[1736262031771,0.12549,211.85,211.75,6.2792]
[1736262032145,20.0,211.86,211.66,1.5737]
[1736262032146,25.0,211.86,211.66,1.5737]
[1736262032346,5.0,211.9,211.66,1.5737]
[1736262032763,20.0,211.87,211.66,1.5737]
[1736262033171,20.0,211.87,211.72,0.12549]
[1736262033402,5.0,211.94,211.66,1.5737]
[1736262033403,10.0,211.89,211.66,1.5737]
[1736262033555,0.12549,211.8,211.66,1.5737]
[1736262033761,20.0,211.79,211.66,1.5737]
[1736262034366,5.0,211.84,211.66,1.5737]
[1736262034761,10.6183,211.9,211.67,0.12549]
[1736262034976,5.0,211.87,211.67,0.12549]
[1736262035173,5.0,211.93,211.71,20.0]
[1736262035378,5.0,211.93,211.73,20.0]
[1736262035582,5.0,211.96,211.93,0.25098]
[1736262035891,18.2554,211.98,211.75,0.12549]
[1736262036076,20.0,211.95,211.75,0.12549]
[1736262036280,5.0,211.94,211.76,0.12549]
[1736262036891,78.3011605,212.03,211.75,75.0]
[1736262036892,59.4359605,212.02,211.83,20.0]
[1736262037065,64.4359605,212.02,211.84,0.70764455]
[1736262037392,58.9359605,212.02,211.85,0.12549]
[1736262037588,58.9359605,212.02,211.86,0.70761237]
[1736262037790,58.9359605,212.02,211.86,0.12549]
[1736262037990,58.9359605,212.02,211.87,0.12549]
[1736262038398,58.9359605,212.02,211.87,23.902374]
[1736262039089,58.8105605,212.02,211.96,23.902374]
[1736262039292,5.0,212.18,212.1,0.12549]
[1736262039498,30.0,212.11,212.1,0.12549]
[1736262039788,33.09828309,212.21,212.1,0.12549]
[1736262040291,10.0,212.18,212.1,0.12549]
[1736262040471,8.2481,212.17,212.1,0.12549]
[1736262040793,8.1227,212.17,212.1,0.12549]
[1736262041491,0.12549,212.13,211.94,34.95636997]
[1736262041795,25.0,212.14,211.99,23.776884]
[1736262042100,20.0,212.13,212.0,0.12549]
[1736262042398,0.12549,212.04,211.94,1.6476]
[1736262042814,20.12549,212.0,211.84,0.7075996]
[1736262042968,20.12549,212.0,211.82,32.60169272]
[1736262043299,13.2512,212.09,211.89,33.30935303]
[1736262043505,5.0,212.03,211.83,0.70739104]
[1736262043706,5.0,212.03,211.78,31.501]
[1736262043707,0.12549,211.98,211.82,0.70752981]
[1736262044030,0.12549,211.88,211.78,1.501]
[1736262044709,142.4,211.93,211.78,1.501]
[1736262044998,5.0,211.91,211.78,1.501]
[1736262045170,5.12549,211.89,211.78,1.501]
[1736262045506,0.12549,211.89,211.79,0.7080107]
[1736262045674,0.12549,211.95,211.8,56.62955672]
[1736262045877,0.12549,211.95,211.82,24.027864]
[1736262045878,20.0,211.94,211.82,24.027864]
[1736262046189,8.2542,212.02,211.86,56.62955672]
[1736262046371,20.0,211.99,211.86,56.62955672]
[1736262046566,8.2521,212.07,211.91,24.027864]
[1736262046767,5.0,212.11,211.97,0.12549]
[1736262046981,5.0,212.11,211.97,0.25098]
[1736262047162,5.0,212.07,211.97,0.25098]
[1736262047363,5.0,212.1,211.9,0.70739492]
[1736262047608,5.0,212.05,211.91,24.027864]
[1736262047807,0.12549,212.03,211.91,0.25098]
[1736262047981,0.12549,212.0,211.89,0.25098]
[1736262048182,0.12549,211.94,211.89,0.25098]
[1736262048484,20.0,211.95,211.8,43.18782015]
[1736262048894,20.0,211.95,211.81,0.25098]
[1736262049094,4.8746,211.95,211.81,0.25098]
[1736262049283,28.2562,211.96,211.81,0.25098]
[1736262049284,4.8746,211.94,211.81,0.25098]
[1736262049492,33.1308,211.96,211.81,0.25098]
[1736262049713,33.1308,211.96,211.81,23.902374]
[1736262050015,4.7492,212.02,211.86,20.0]
[1736262050328,4.7492,212.02,211.87,23.902374]
[1736262050814,4.7492,212.02,211.86,20.0]
[1736262050815,5.0,212.0,211.81,0.70765841]
[1736262051112,4.7492,211.96,211.8,43.18775961]
[1736262051313,0.12549,211.95,211.8,0.70775961]
[1736262051493,25.0,211.97,211.78,1.501]
[1736262051494,0.12549,211.89,211.78,1.501]
[1736262051808,0.12549,211.84,211.78,1.501]
[1736262052020,24.6238,211.85,211.78,1.501]
[1736262052225,20.0,211.85,211.78,1.501]
[1736262052382,20.0,211.84,211.78,1.501]
[1736262052884,20.0,211.84,211.79,0.12549]
[1736262053306,20.0,211.84,211.78,1.501]
[1736262053681,20.0,211.84,211.79,0.12549]
[1736262054395,5.0,211.95,211.79,23.902374]
[1736262054598,17.7546,211.97,211.81,23.902374]
[1736262055017,9.4984,211.94,211.81,0.12549]
[1736262055322,20.0,211.89,211.78,1.501]
[1736262055532,20.0,211.89,211.79,0.12549]
[1736262055720,24.4984,211.87,211.79,0.12549]
[1736262056407,4.4984,211.87,211.79,0.12549]
[1736262056725,4.4984,211.87,211.7,32.60169272]
[1736262056726,4.4984,211.8,211.64,40.79199272]
[1736262057034,4.4984,211.8,211.65,0.70838219]
[1736262057035,0.12549,211.79,211.65,0.70838219]
[1736262057535,0.12549,211.79,211.64,8.1903]
[1736262057536,0.12549,211.77,211.64,8.1903]
[1736262057714,0.12549,211.74,211.64,8.1903]
[1736262057918,0.12549,211.69,211.64,8.1903]
[1736262058114,0.12549,211.69,211.52,6.6039]
[1736262058115,4.62389,211.66,211.52,6.6039]
[1736262058301,30.0,211.79,211.52,6.6039]
[1736262058302,0.12549,211.62,211.52,6.6039]
[1736262058497,20.0,211.63,211.52,6.6039]
[1736262059140,0.12549,211.59,211.52,6.6039]
[1736262059503,4.49849,211.59,211.52,6.6039]
[1736262059706,0.12549,211.6,211.52,6.6039]
[1736262060007,0.12549,211.6,211.53,0.12549]
[1736262060201,0.12549,211.6,211.52,6.6039]
[1736262060404,9.2476,211.68,211.52,6.6039]
[1736262060598,14.1699,211.72,211.6,32.60169272]
[1736262060599,4.2476,211.72,211.6,32.60169272]
[1736262060819,5.0,211.78,211.63,23.902374]
[1736262061022,4.2476,211.74,211.65,0.12549]
[1736262061243,4.2476,211.72,211.65,0.12549]
[1736262061425,7.0831,211.77,211.65,0.12549]
[1736262061426,24.2476,211.66,211.65,0.12549]
[1736262061631,4.2476,211.66,211.52,6.6039]
[1736262061830,0.12549,211.64,211.52,6.6039]
[1736262062005,0.12549,211.64,211.53,23.902374]
[1736262062201,4.37309,211.64,211.53,0.12549]
[1736262062439,20.0,211.61,211.53,0.12549]
[1736262062641,5.0,211.61,211.53,0.12549]
[1736262062927,4.2476,211.62,211.52,6.6039]
[1736262062928,20.0,211.57,211.52,6.6039]
[1736262063234,4.37309,211.58,211.41,6.0736]
[1736262063235,24.2476,211.53,211.41,6.0736]
[1736262063442,4.2476,211.51,211.41,6.0736]
[1736262063740,4.2476,211.48,211.41,6.0736]
[1736262063948,4.2476,211.48,211.39,1.6266]
[1736262063949,4.2476,211.45,211.39,1.6266]
[1736262064108,4.2476,211.44,211.39,1.6266]
[1736262064446,4.2476,211.42,211.39,1.6266]
[1736262064605,30.0,211.4,211.3,6.1613]
[1736262064808,30.0,211.4,211.33,32.60169272]
[1736262065045,20.0512412,211.4,211.37,32.72718272]
[1736262065205,20.0512412,211.4,211.39,56.50406672]
[1736262065409,18.3846412,211.4,211.39,56.50406672]
[1736262065743,5.0,211.56,211.4,23.902374]
[1736262065946,4.2476,211.57,211.44,32.60169272]
[1736262066145,4.2476,211.6,211.47,32.60169272]
[1736262066308,0.12549,211.59,211.48,24.6113041]
[1736262066641,4.2476,211.6,211.48,57.21299682]
[1736262066807,4.8746,211.56,211.41,33.31061339]
[1736262067003,4.8746,211.55,211.41,0.70892067]
[1736262067304,4.8746,211.6,211.44,32.72718272]
[1736262067632,7.0875,211.64,211.46,0.12549]
[1736262067633,9.1222,211.58,211.46,0.12549]
[1736262067839,29.1222,211.53,211.46,0.12549]
[1736262068141,0.12549,211.45,211.31,0.70922802]
[1736262068315,0.12549,211.45,211.3,6.1613]
[1736262068316,0.12549,211.43,211.3,6.1613]
[1736262068505,0.12549,211.39,211.3,6.1613]
[1736262068701,0.12549,211.39,211.27,43.22961059]
[1736262068899,0.12549,211.39,211.27,42.52]
[1736262069302,9.1222,211.4,211.28,33.31137611]
[1736262069303,4.1222,211.4,211.28,33.31137611]
[1736262069503,8.9968,211.47,211.34,32.60169272]
[1736262069735,4.1222,211.47,211.36,23.902374]
[1736262069935,0.12549,211.46,211.36,23.902374]
[1736262070139,6.6075,211.61,211.38,32.72718272]
[1736262070140,8.9968,211.52,211.38,32.72718272]
[1736262070352,8.9968,211.52,211.38,0.12549]
[1736262070546,4.8746,211.51,211.4,0.12549]
[1736262070757,4.1222,211.52,211.42,23.902374]
[1736262070958,4.1222,211.55,211.42,23.902374]
[1736262071253,0.12549,211.52,211.42,23.902374]
[1736262071415,0.12549,211.52,211.41,0.70917764]
[1736262071416,4.1222,211.49,211.34,0.70918005]
[1736262071616,4.8746,211.45,211.34,0.70918005]
[1736262071847,0.12549,211.44,211.29,33.31111391]
[1736262072030,4.1222,211.41,211.27,75.12169272]
[1736262072348,0.12549,211.37,211.27,42.52]
[1736262072541,0.12549,211.37,211.28,0.12549]
[1736262072733,0.12549,211.37,211.27,42.52]
[1736262072734,0.12549,211.34,211.27,42.52]
[1736262072934,0.12549,211.32,211.2,0.70962172]
[1736262073115,0.12549,211.26,211.13,32.60169272]
[1736262073321,0.12549,211.26,211.15,33.31162241]
[1736262073516,4.1222,211.29,211.15,0.70992969]
[1736262073721,4.1222,211.34,211.22,32.60169272]
[1736262073959,4.1222,211.35,211.23,0.70993341]
[1736262074125,4.8746,211.35,211.24,32.60169272]
[1736262074329,4.8746,211.39,211.28,32.60169272]
[1736262074526,4.1222,211.38,211.29,0.70966564]
[1736262074814,4.1222,211.34,211.21,32.60169272]
[1736262075037,4.8746,211.37,211.22,0.70980119]
[1736262075360,4.1222,211.36,211.24,32.60169272]
[1736262075649,0.12549,211.33,211.26,0.12549]
[1736262075853,5.00009,211.33,211.26,0.12549]
[1736262076030,4.8746,211.31,211.17,20.0]
[1736262076214,4.8746,211.26,211.17,20.0]
[1736262076420,4.1222,211.3,211.18,0.71005962]
[1736262076719,4.8746,211.29,211.19,0.12549]
[1736262076918,5.0,211.42,211.19,0.12549]
[1736262076919,4.1222,211.34,211.24,0.12549]
[1736262077127,4.8746,211.33,211.24,32.92396483]
[1736262077351,0.12549,211.29,211.24,0.12549]
[1736262077564,0.12549,211.29,211.23,32.79847483]
[1736262077731,14.1863,211.48,211.26,32.92396483]
[1736262077732,4.8746,211.36,211.26,32.92396483]
[1736262077940,5.0,211.56,211.2,75.0]
[1736262077941,4.8746,211.4,211.28,32.92396483]
[1736262078152,4.8746,211.4,211.27,24.48657282]
[1736262078153,8.9968,211.39,211.27,33.5081526]
[1736262078339,4.8746,211.43,211.31,32.79847483]
[1736262078548,4.8746,211.43,211.32,32.79847483]
[1736262078861,4.1222,211.46,211.24,20.0]
[1736262078862,4.1222,211.46,211.35,0.12549]
[1736262079046,4.1222,211.46,211.37,0.12549]
[1736262079224,4.8746,211.47,211.39,0.12549]
[1736262079430,4.1222,211.5,211.41,0.12549]
[1736262079630,4.8746,211.47,211.34,33.50770051]
[1736262079843,4.8746,211.48,211.34,0.70922568]
[1736262080056,4.8746,211.48,211.38,0.12549]
[1736262080257,4.1222,211.51,211.3,39.10767483]
[1736262080258,4.8746,211.44,211.3,39.10767483]
[1736262080457,4.8746,211.4,211.26,32.79847483]
[1736262080639,4.8746,211.4,211.2,6.378]
[1736262080640,4.8746,211.36,211.22,32.79847483]
[1736262080839,4.8746,211.36,211.21,0.70967509]
[1736262080840,4.8746,211.36,211.24,0.12549]
[1736262081063,8.9968,211.38,211.26,32.79847483]
[1736262081239,4.1222,211.38,211.27,33.5081395]
[1736262081434,4.1222,211.41,211.3,32.79847483]
[1736262081660,4.1222,211.4,211.32,0.12549]
[1736262081834,4.8746,211.36,211.32,0.12549]
[1736262082164,4.8746,211.34,211.21,33.5080888]
[1736262082455,4.8746,211.32,211.21,0.70961397]
[1736262082659,4.1222,211.26,211.17,42.58]
[1736262082873,4.8746,211.29,211.09,6.4253]
[1736262082874,4.1222,211.23,211.1,33.50849661]
[1736262083032,4.1222,211.24,211.1,33.50849661]
[1736262083364,8.9968,211.21,211.1,0.71002178]
[1736262083536,5.0,211.34,211.11,32.79847483]
[1736262083537,4.8746,211.19,211.11,32.79847483]
[1736262083730,4.1222,211.2,211.12,0.71025159]
[1736262083931,4.8746,211.21,211.13,32.79847483]
[1736262084167,4.8746,211.21,211.05,2.99594081]
[1736262084168,4.8746,211.25,211.14,0.71019709]
[1736262084463,4.8746,211.27,211.18,32.79847483]
[1736262084651,4.8746,211.23,211.12,32.79847483]
[1736262084854,4.8746,211.21,211.1,0.71012155]
[1736262085162,4.8746,211.19,211.1,0.71012155]
[1736262085368,4.1222,211.18,211.07,33.50875764]
[1736262085549,4.1222,211.16,211.07,0.71028281]
[1736262085751,8.9968,211.14,211.03,27.88276019]
[1736262085946,4.8746,211.12,211.03,27.88276019]
[1736262086152,4.8746,211.12,211.04,32.79847483]
[1736262086354,4.1222,211.14,211.04,32.79847483]
[1736262086662,8.9968,211.09,211.03,27.88276019]
[1736262087262,4.1222,211.04,211.03,27.88276019]
[1736262087474,8.9968,211.01,211.0,0.0001]
[1736262087762,4.8746,211.01,211.0,0.0001]
[1736262087964,4.8746,211.06,211.0,0.0001]
[1736262088267,4.1222,211.01,210.92,28.2062195]
[1736262088566,4.1222,210.94,210.92,28.2062195]
[1736262088742,4.8746,210.98,210.92,28.2062195]
[1736262089096,8.9968,210.98,210.92,28.2062195]
[1736262089272,4.8746,210.96,210.92,27.2062195]
[1736262089439,28.9968,210.93,210.92,26.7062195]
[1736262089868,8.9968,210.88,210.87,3.77523326]
[1736262090367,4.1222,210.82,210.81,28.52967881]
[1736262090541,4.76714793,210.82,210.81,28.52967881]
[1736262090747,4.1222,210.74,210.59,33.5101619]
[1736262090946,4.1222,210.74,210.58,29.17659744]
[1736262091273,8.9968,210.74,210.6,32.79847483]
[1736262091653,8.9968,210.74,210.58,29.17659744]
[1736262091861,8.9968,210.74,210.6,32.79847483]
[1736262092058,8.9968,210.74,210.59,0.71198124]
[1736262092376,8.9968,210.74,210.59,32.79847483]
[1736262092676,8.9968,210.74,210.58,29.17659744]
[1736262092677,8.9968,210.74,210.58,29.88844969]
[1736262092886,4.8746,210.74,210.73,0.62549]
[1736262093184,8.9968,210.71,210.58,29.17659744]
[1736262093398,8.9968,210.71,210.59,0.71192642]
[1736262093557,8.9968,210.71,210.58,29.17659744]
[1736262093760,2.0,210.75,210.58,29.17659744]
[1736262093761,4.8746,210.69,210.58,29.17659744]
[1736262093957,4.8746,210.66,210.58,29.17659744]
[1736262094157,4.8746,210.66,210.58,61.97507227]
[1736262094359,4.8746,210.7,210.65,32.79847483]
[1736262094597,4.8746,210.74,210.69,32.92396483]
[1736262094884,2.0,210.75,210.74,23.902374]
[1736262095575,4.1222,210.85,210.74,23.902374]
[1736262095773,4.8746,210.86,210.77,32.79847483]
[1736262096091,4.8746,210.88,210.81,32.79847483]
[1736262096288,25.41149543,210.89,210.77,32.79847483]
[1736262096489,4.8746,210.88,210.77,32.79847483]
[1736262096782,4.8746,210.83,210.73,32.79847483]
[1736262096954,4.8746,210.85,210.75,32.79847483]
[1736262097159,8.9968,210.87,210.75,32.79847483]
[1736262097395,4.1222,210.86,210.76,23.902374]
[1736262097560,30.28609543,210.89,210.82,23.902374]
[1736262097758,4.1222,210.93,210.77,0.7113199]
[1736262097759,4.8746,210.91,210.85,23.902374]
[1736262097969,4.8746,210.96,210.89,23.902374]
[1736262098169,8.9968,211.03,210.91,23.902374]
[1736262098384,4.8746,211.05,210.99,23.776884]
[1736262098691,4.8746,211.12,211.04,32.79847483]
[1736262098863,4.8746,211.12,210.95,0.8778]
[1736262098864,4.8746,211.14,211.1,23.776884]
[1736262099184,5.0,211.27,211.09,32.79847483]
[1736262099185,4.8746,211.15,211.09,32.79847483]
[1736262099483,4.1222,211.11,211.07,32.79847483]
[1736262099690,8.9968,211.14,211.05,32.79847483]
[1736262099892,4.8746,211.14,211.06,23.776884]
[1736262100061,0.64494793,211.24,210.94,0.1254]
[1736262100062,8.9968,211.1,210.99,32.79847483]
[1736262100386,8.9968,211.12,211.05,32.79847483]
[1736262100587,4.1222,211.14,211.07,32.79847483]
[1736262100885,4.8746,211.18,211.09,32.79847483]
[1736262101102,4.8746,211.09,211.0,32.79847483]
[1736262101408,4.1222,211.12,211.0,32.79847483]
[1736262101563,0.64494793,211.21,211.0,32.79847483]
[1736262101564,4.1222,211.1,211.0,32.79847483]
[1736262101764,4.8746,211.11,211.02,32.79847483]
[1736262101978,0.64494793,211.21,211.0,32.79847483]
[1736262101979,8.9968,211.08,211.0,32.79847483]
[1736262102474,4.1222,211.04,210.93,0.71056481]
[1736262102681,5.0,211.19,210.83,2.4424]
[1736262102682,8.9968,211.02,210.98,32.79847483]
[1736262102898,8.9968,211.06,210.98,32.79847483]
[1736262103101,4.8746,211.04,210.98,32.79847483]
[1736262103273,0.64494793,211.15,211.02,32.79847483]
[1736262103274,8.9968,211.1,211.02,32.79847483]
[1736262103472,8.9968,211.08,211.04,32.79847483]
[1736262103793,4.8746,211.05,210.99,32.79847483]
[1736262103965,4.8746,211.05,210.97,32.79847483]
[1736262104170,4.1222,211.02,210.94,32.79847483]
[1736262104472,4.1222,211.02,210.95,32.79847483]
[1736262104716,4.1222,211.03,210.99,32.79847483]
[1736262104993,4.8746,211.0,210.92,32.79847483]
[1736262105198,8.9968,211.0,210.92,32.79847483]
[1736262105401,8.9968,211.04,210.98,32.79847483]
[1736262105696,4.8746,210.97,210.85,0.71066325]
[1736262105905,4.8746,210.97,210.78,23.8463]
[1736262105906,4.8746,210.95,210.86,32.79847483]
[1736262106199,8.9968,210.93,210.82,32.79847483]
[1736262106364,4.1222,210.87,210.76,32.79847483]
[1736262106565,4.1222,210.85,210.73,32.79847483]
[1736262106764,4.1222,210.85,210.63,11.6]
[1736262106765,4.1222,210.76,210.71,0.71133623]
[1736262106987,4.1222,210.74,210.68,0.71142153]
[1736262107176,4.1222,210.74,210.66,32.79847483]
[1736262107380,4.1222,210.68,210.62,33.56951387]
[1736262107585,4.1222,210.66,210.62,0.77103904]
[1736262107766,4.1222,210.66,210.62,0.05961751]
[1736262107975,4.1222,210.63,210.62,0.05961751]
[1736262108471,4.1222,210.59,210.58,29.17659744]
[1736262108672,24.1222,210.59,210.58,29.17659744]
[1736262108894,28.9968,210.59,210.58,29.17659744]
[1736262109199,8.9968,210.59,210.58,29.17659744]
[1736262109700,13.9968,210.37,210.36,0.86036935]
[1736262110000,13.9968,210.37,210.36,6.935e-05]
[1736262110201,4.1222,210.28,210.25,29.64704472]
[1736262110382,17.0048,210.37,210.25,29.64704472]
[1736262110383,4.1222,210.26,210.25,29.64704472]
[1736262110588,4.1222,210.28,210.25,29.52164472]
[1736262110784,4.1222,210.26,210.25,29.52164472]
[1736262110991,8.9968,210.26,210.25,29.52164472]
[1736262111494,8.9968,210.26,210.25,28.52164472]
[1736262112309,8.9968,210.26,210.13,30.47043468]
[1736262112475,4.1222,210.17,210.13,29.97043468]
[1736262112804,4.8746,210.03,210.02,26.07078525]
[1736262113007,5.0,210.06,210.0,391.48251233]
[1736262113008,4.8746,210.01,210.0,391.48251233]
[1736262113380,4.8746,210.01,210.0,244.45303298]
[1736262113381,23.24113078,210.01,210.0,244.45303298]
[1736262113585,4.8746,209.85,209.84,18.5280898]
[1736262114127,4.1222,209.81,209.78,17.54256242]
[1736262114315,4.8746,209.7,209.69,27.82787193]
[1736262114513,4.8746,209.7,209.69,4.33257193]
[1736262114816,0.64494793,209.76,209.69,32.79854676]
[1736262114983,0.64494793,209.76,209.53,32.79847483]
[1736262114984,8.9968,209.58,209.57,38.07712675]
[1736262115419,0.64494793,209.64,209.57,67.65730158]
[1736262115581,0.64494793,209.7,209.57,34.85882675]
[1736262115785,0.64494793,209.69,209.57,31.64972675]
[1736262115986,5.0,209.61,209.57,31.64972675]
[1736262116186,2.3826,209.85,209.57,31.64972675]
[1736262116187,5.0,209.82,209.57,31.64972675]
[1736262116419,5.0,209.73,209.57,31.64972675]
[1736262116618,5.0,209.78,209.57,31.64972675]
[1736262116827,10.39195363,209.81,209.59,32.79847483]
[1736262116828,12.77505363,209.81,209.59,32.79847483]
[1736262117026,12.77505363,209.81,209.57,31.64972675]
[1736262117027,0.85955363,209.72,209.57,31.64972675]
[1736262117206,5.0,209.75,209.66,305.0]
[1736262117523,10.0,209.77,209.66,305.0]
[1736262117823,13.25817971,210.07,209.76,32.79847483]
[1736262117824,5.0,209.82,209.76,32.79847483]
[1736262117997,5.0,209.85,209.81,32.79847483]
[1736262118191,5.0,209.88,209.84,32.79847483]
[1736262118397,5.0,209.96,209.87,32.79847483]
[1736262118597,5.0,209.96,209.9,32.79847483]
[1736262118805,5.0,210.07,209.94,32.79847483]
[1736262118806,2.3804,210.04,209.94,32.79847483]
[1736262119022,2.3804,210.04,209.96,32.79847483]
[1736262119197,2.3804,210.04,209.98,32.79847483]
[1736262119515,2.3804,210.04,209.84,0.71435349]
[1736262119516,5.0,210.16,210.01,32.79847483]